[Event "Early-Titled-Tuesday-Blitz-January-23-2024"]
[Site "Chess.com"]
[Date "2024.01.23"]
[Round "1"]
[White "m_ezat"]
[Black "AvitalBor"]
[Result "0-1"]
[WhiteElo "2440"]
[BlackElo "2791"]
[TimeControl "180+1"]
[EndTime "8:08:30 PST"]
[Termination "AvitalBor won by checkmate"]

1. d4 {[%clk 0:02:59.5]} 1... Nf6 {[%clk 0:02:58.2]} 2. Nf3 {[%clk 0:02:58.1]}
2... g6 {[%clk 0:02:58]} 3. Nbd2 {[%clk 0:02:53.8]} 3... d5 {[%clk 0:02:55.5]}
4. e3 {[%clk 0:02:52.8]} 4... Bg7 {[%clk 0:02:55.1]} 5. b4 {[%clk 0:02:53]} 5...
O-O {[%clk 0:02:53.2]} 6. c4 {[%clk 0:02:53]} 6... a5 {[%clk 0:02:50.3]} 7. b5
{[%clk 0:02:52.5]} 7... c5 {[%clk 0:02:50.6]} 8. Bb2 {[%clk 0:02:51.7]} 8...
cxd4 {[%clk 0:02:49]} 9. Bxd4 {[%clk 0:02:51.4]} 9... Nbd7 {[%clk 0:02:46.8]}
10. Be2 {[%clk 0:02:48.9]} 10... b6 {[%clk 0:02:44.6]} 11. O-O {[%clk
0:02:47.4]} 11... Bb7 {[%clk 0:02:44.4]} 12. Qb3 {[%clk 0:02:41.5]} 12... Re8
{[%clk 0:02:37.9]} 13. cxd5 {[%clk 0:02:33.9]} 13... Nxd5 {[%clk 0:02:28.6]} 14.
Bxg7 {[%clk 0:02:32.2]} 14... Kxg7 {[%clk 0:02:29.5]} 15. Nc4 {[%clk 0:02:27.2]}
15... Nc5 {[%clk 0:02:25.2]} 16. Qb2+ {[%clk 0:02:26.7]} 16... f6 {[%clk
0:02:15.7]} 17. Rad1 {[%clk 0:02:26]} 17... Qc7 {[%clk 0:02:11.2]} 18. Rc1
{[%clk 0:02:23]} 18... e5 {[%clk 0:02:03.9]} 19. Rfd1 {[%clk 0:02:21.6]} 19...
Rac8 {[%clk 0:01:56.5]} 20. h3 {[%clk 0:02:20.5]} 20... Red8 {[%clk 0:01:43.3]}
21. Nfd2 {[%clk 0:02:19.2]} 21... Nb4 {[%clk 0:01:36.6]} 22. Qa1 {[%clk
0:02:04.8]} 22... Nbd3 {[%clk 0:01:21.9]} 23. Rc3 {[%clk 0:02:02.9]} 23... Ba8
{[%clk 0:01:05.7]} 24. Nb3 {[%clk 0:02:00.2]} 24... Nb4 {[%clk 0:00:51.3]} 25.
Nxc5 {[%clk 0:01:56.1]} 25... Qxc5 {[%clk 0:00:44.7]} 26. Rxd8 {[%clk
0:01:54.9]} 26... Rxd8 {[%clk 0:00:45.6]} 27. Nxa5 {[%clk 0:01:40.6]} 27... Qd5
{[%clk 0:00:43.2]} 28. Nc6 {[%clk 0:01:40.5]} 28... Nxc6 {[%clk 0:00:40.7]} 29.
bxc6 {[%clk 0:00:57.3]} 29... Bxc6 {[%clk 0:00:40.4]} 30. e4 {[%clk 0:00:44.2]}
30... Qd4 {[%clk 0:00:29.7]} 31. Qc1 {[%clk 0:00:42.9]} 31... Bxe4 {[%clk
0:00:15.9]} 32. Rc7+ {[%clk 0:00:42.5]} 32... Rd7 {[%clk 0:00:16.6]} 33. Rc8
{[%clk 0:00:40.2]} 33... Qd2 {[%clk 0:00:14.7]} 34. Qxd2 {[%clk 0:00:36.2]}
34... Rxd2 {[%clk 0:00:15.6]} 35. Bc4 {[%clk 0:00:36.5]} 35... Rc2 {[%clk
0:00:08.3]} 36. Rg8+ {[%clk 0:00:35.5]} 36... Kh6 {[%clk 0:00:08.6]} 37. Bb3
{[%clk 0:00:35.5]} 37... Rc1+ {[%clk 0:00:08.1]} 38. Kh2 {[%clk 0:00:35.6]}
38... Rf1 {[%clk 0:00:08.7]} 39. Kg3 {[%clk 0:00:34.6]} 39... f5 {[%clk
0:00:08.8]} 40. f3 {[%clk 0:00:34.3]} 40... f4+ {[%clk 0:00:09]} 41. Kh2 {[%clk
0:00:34.6]} 41... Bf5 {[%clk 0:00:09.2]} 42. Re8 {[%clk 0:00:33.7]} 42... Re1
{[%clk 0:00:09.6]} 43. Re7 {[%clk 0:00:31]} 43... Re2 {[%clk 0:00:10]} 44. Kg1
{[%clk 0:00:26.3]} 44... Bd3 {[%clk 0:00:08.5]} 45. Bg8 {[%clk 0:00:23]} 45...
Kg5 {[%clk 0:00:06.5]} 46. Bxh7 {[%clk 0:00:21.6]} 46... Kf6 {[%clk 0:00:05.7]}
47. Rb7 {[%clk 0:00:20.5]} 47... b5 {[%clk 0:00:06]} 48. Bg8 {[%clk 0:00:19.7]}
48... e4 {[%clk 0:00:06.1]} 49. Rb6+ {[%clk 0:00:19.1]} 49... Kg7 {[%clk
0:00:06]} 50. Bd5 {[%clk 0:00:14.3]} 50... e3 {[%clk 0:00:06.4]} 51. Re6 {[%clk
0:00:06.5]} 51... Re1+ {[%clk 0:00:06.7]} 52. Kh2 {[%clk 0:00:06.1]} 52... e2
{[%clk 0:00:07.4]} 53. Be4 {[%clk 0:00:05.1]} 53... Rc1 {[%clk 0:00:04.3]} 54.
Bxd3 {[%clk 0:00:04.3]} 54... e1=Q {[%clk 0:00:05]} 55. Rxe1 {[%clk 0:00:04.5]}
55... Rxe1 {[%clk 0:00:05.9]} 56. Bxb5 {[%clk 0:00:04.9]} 56... Ra1 {[%clk
0:00:05.9]} 57. Bc4 {[%clk 0:00:05]} 57... Kf6 {[%clk 0:00:06.2]} 58. g3 {[%clk
0:00:04.7]} 58... Rc1 {[%clk 0:00:05.1]} 59. Bb3 {[%clk 0:00:04]} 59... Ke5
{[%clk 0:00:05.6]} 60. gxf4+ {[%clk 0:00:04.2]} 60... Kxf4 {[%clk 0:00:06.5]}
61. h4 {[%clk 0:00:04.4]} 61... Kxf3 {[%clk 0:00:06.3]} 62. Kh3 {[%clk
0:00:04.8]} 62... Rh1# {[%clk 0:00:05.7]} 0-1

[Event "Early-Titled-Tuesday-Blitz-January-23-2024"]
[Site "Chess.com"]
[Date "2024.01.23"]
[Round "1"]
[White "Hamisandwich"]
[Black "MusicCityMaster"]
[Result "1-0"]
[WhiteElo "2706"]
[BlackElo "2399"]
[TimeControl "180+1"]
[EndTime "8:08:37 PST"]
[Termination "Hamisandwich won by checkmate"]

1. d4 {[%clk 0:03:00.8]} 1... Nf6 {[%clk 0:02:58.3]} 2. Nc3 {[%clk 0:02:59.5]}
2... d5 {[%clk 0:02:57.5]} 3. Bf4 {[%clk 0:02:58.5]} 3... c6 {[%clk 0:02:58]} 4.
e3 {[%clk 0:02:56.9]} 4... e6 {[%clk 0:02:56.5]} 5. Bd3 {[%clk 0:02:52]} 5... b5
{[%clk 0:02:56.4]} 6. Nf3 {[%clk 0:02:46.4]} 6... a5 {[%clk 0:02:55.5]} 7. Ne5
{[%clk 0:02:45]} 7... Nfd7 {[%clk 0:02:52.2]} 8. Qh5 {[%clk 0:02:27.1]} 8...
Nxe5 {[%clk 0:02:51.7]} 9. Bxe5 {[%clk 0:02:26.5]} 9... Nd7 {[%clk 0:02:46.5]}
10. f4 {[%clk 0:02:02.6]} 10... b4 {[%clk 0:02:33.6]} 11. Na4 {[%clk 0:01:57.3]}
11... Ba6 {[%clk 0:02:33.7]} 12. f5 {[%clk 0:01:38]} 12... Bxd3 {[%clk
0:02:17.7]} 13. cxd3 {[%clk 0:01:30.2]} 13... Nxe5 {[%clk 0:02:01.9]} 14. dxe5
{[%clk 0:01:30.6]} 14... exf5 {[%clk 0:01:35.1]} 15. Qxf5 {[%clk 0:01:28.8]}
15... Be7 {[%clk 0:01:32.5]} 16. O-O {[%clk 0:01:20.4]} 16... O-O {[%clk
0:01:32.5]} 17. d4 {[%clk 0:01:19.8]} 17... Qc8 {[%clk 0:01:16.8]} 18. Qf3
{[%clk 0:01:09.2]} 18... Rb8 {[%clk 0:01:13.5]} 19. Rac1 {[%clk 0:01:02.6]}
19... Qe6 {[%clk 0:01:09.1]} 20. Qg3 {[%clk 0:00:36.8]} 20... f6 {[%clk
0:01:03.4]} 21. exf6 {[%clk 0:00:30.2]} 21... Bxf6 {[%clk 0:01:03.8]} 22. Nc5
{[%clk 0:00:28.6]} 22... Qe7 {[%clk 0:01:03]} 23. Rf3 {[%clk 0:00:24.1]} 23...
Rbe8 {[%clk 0:00:49.3]} 24. Rcf1 {[%clk 0:00:23.1]} 24... Qd8 {[%clk 0:00:37.9]}
25. Qg4 {[%clk 0:00:19]} 25... Kh8 {[%clk 0:00:34.9]} 26. g3 {[%clk 0:00:16.7]}
26... Qc8 {[%clk 0:00:32.2]} 27. Qd7 {[%clk 0:00:15]} 27... h6 {[%clk
0:00:24.8]} 28. Qxc8 {[%clk 0:00:12.6]} 28... Rxc8 {[%clk 0:00:24.5]} 29. Nd7
{[%clk 0:00:13.5]} 29... Rfe8 {[%clk 0:00:20.7]} 30. Nxf6 {[%clk 0:00:14.4]}
30... gxf6 {[%clk 0:00:21]} 31. Rxf6 {[%clk 0:00:15.2]} 31... Rxe3 {[%clk
0:00:20.7]} 32. Rxh6+ {[%clk 0:00:12]} 32... Kg7 {[%clk 0:00:21.3]} 33. Rhf6
{[%clk 0:00:10]} 33... Re2 {[%clk 0:00:21.2]} 34. Rf7+ {[%clk 0:00:09.8]} 34...
Kg8 {[%clk 0:00:20.8]} 35. R7f2 {[%clk 0:00:09.5]} 35... Re4 {[%clk 0:00:20.5]}
36. Rd2 {[%clk 0:00:08.2]} 36... Rce8 {[%clk 0:00:19.7]} 37. Kg2 {[%clk
0:00:08.6]} 37... Re2+ {[%clk 0:00:19.4]} 38. Rf2 {[%clk 0:00:09.1]} 38... Rxd2
{[%clk 0:00:18.3]} 39. Rxd2 {[%clk 0:00:09.1]} 39... Re1 {[%clk 0:00:18.1]} 40.
b3 {[%clk 0:00:07.7]} 40... Re4 {[%clk 0:00:15.1]} 41. Kf3 {[%clk 0:00:07.7]}
41... Kg7 {[%clk 0:00:15.9]} 42. h4 {[%clk 0:00:06.5]} 42... Kg6 {[%clk
0:00:16.2]} 43. g4 {[%clk 0:00:07]} 43... Kf6 {[%clk 0:00:15.6]} 44. Rc2 {[%clk
0:00:07]} 44... Rxd4 {[%clk 0:00:13.9]} 45. Rxc6+ {[%clk 0:00:07.6]} 45... Kf7
{[%clk 0:00:14.4]} 46. h5 {[%clk 0:00:07]} 46... Rd2 {[%clk 0:00:14.1]} 47. g5
{[%clk 0:00:06.4]} 47... Rxa2 {[%clk 0:00:13.3]} 48. Rc7+ {[%clk 0:00:06.8]}
48... Ke6 {[%clk 0:00:13]} 49. g6 {[%clk 0:00:05.2]} 49... Ra1 {[%clk
0:00:12.2]} 50. Kf2 {[%clk 0:00:04.8]} 50... Ra2+ {[%clk 0:00:12.2]} 51. Kf3
{[%clk 0:00:05.2]} 51... Ra1 {[%clk 0:00:12.5]} 52. g7 {[%clk 0:00:05.8]} 52...
Rg1 {[%clk 0:00:12.4]} 53. h6 {[%clk 0:00:06.4]} 53... a4 {[%clk 0:00:12.3]} 54.
bxa4 {[%clk 0:00:06.1]} 54... b3 {[%clk 0:00:12.8]} 55. Rb7 {[%clk 0:00:06.8]}
55... Kf6 {[%clk 0:00:12.5]} 56. Rb8 {[%clk 0:00:05.7]} 56... b2 {[%clk
0:00:12.8]} 57. Rxb2 {[%clk 0:00:05.4]} 57... Kf7 {[%clk 0:00:10.7]} 58. Rg2
{[%clk 0:00:04.9]} 58... Rf1+ {[%clk 0:00:10]} 59. Ke2 {[%clk 0:00:05.3]} 59...
Rf6 {[%clk 0:00:06.5]} 60. g8=Q+ {[%clk 0:00:06.2]} 60... Ke7 {[%clk 0:00:07]}
61. Rg7+ {[%clk 0:00:05.6]} 61... Kd6 {[%clk 0:00:07]} 62. Qd8+ {[%clk
0:00:06.2]} 62... Kc5 {[%clk 0:00:05.9]} 63. Qxf6 {[%clk 0:00:06.7]} 63... d4
{[%clk 0:00:06.1]} 64. Rg5+ {[%clk 0:00:07.4]} 64... Kc4 {[%clk 0:00:06.6]} 65.
Rg4 {[%clk 0:00:08.1]} 65... Kc3 {[%clk 0:00:07.1]} 66. Qxd4+ {[%clk 0:00:08.5]}
66... Kb3 {[%clk 0:00:07.7]} 67. Rg3+ {[%clk 0:00:08.8]} 67... Kc2 {[%clk
0:00:07.9]} 68. Qd2+ {[%clk 0:00:09.3]} 68... Kb1 {[%clk 0:00:07.3]} 69. Rg1#
{[%clk 0:00:10.2]} 1-0

[Event "Early-Titled-Tuesday-Blitz-January-23-2024"]
[Site "Chess.com"]
[Date "2024.01.23"]
[Round "1"]
[White "WPWPWP-2015"]
[Black "carokannlover213"]
[Result "1-0"]
[WhiteElo "2489"]
[BlackElo "2841"]
[TimeControl "180+1"]
[EndTime "8:08:38 PST"]
[Termination "WPWPWP-2015 won on time"]

1. e4 {[%clk 0:02:59.6]} 1... c6 {[%clk 0:03:00.3]} 2. Nc3 {[%clk 0:02:57.3]}
2... g6 {[%clk 0:03:00.5]} 3. Nf3 {[%clk 0:02:55.1]} 3... Bg7 {[%clk 0:03:01.4]}
4. Bc4 {[%clk 0:02:48.3]} 4... d6 {[%clk 0:02:43.1]} 5. a4 {[%clk 0:02:46.2]}
5... Nf6 {[%clk 0:02:40.3]} 6. O-O {[%clk 0:02:45.3]} 6... O-O {[%clk
0:02:39.1]} 7. d3 {[%clk 0:02:44.8]} 7... c5 {[%clk 0:02:37.6]} 8. h3 {[%clk
0:02:42.3]} 8... Nc6 {[%clk 0:02:37.2]} 9. Bd2 {[%clk 0:02:42]} 9... e5 {[%clk
0:02:34.7]} 10. Nd5 {[%clk 0:02:39.6]} 10... Nxd5 {[%clk 0:02:31.2]} 11. Bxd5
{[%clk 0:02:38.9]} 11... Be6 {[%clk 0:02:25.5]} 12. Bxe6 {[%clk 0:02:33]} 12...
fxe6 {[%clk 0:02:26.4]} 13. c3 {[%clk 0:02:33]} 13... Qd7 {[%clk 0:02:23.2]} 14.
a5 {[%clk 0:02:31.6]} 14... Rf7 {[%clk 0:02:19.3]} 15. Re1 {[%clk 0:02:30.3]}
15... Raf8 {[%clk 0:02:18.1]} 16. Be3 {[%clk 0:02:29.5]} 16... h6 {[%clk
0:02:07.9]} 17. Kh2 {[%clk 0:02:27]} 17... g5 {[%clk 0:01:58.2]} 18. Ng1 {[%clk
0:02:23.5]} 18... Ne7 {[%clk 0:01:53.9]} 19. Ne2 {[%clk 0:02:16.9]} 19... Ng6
{[%clk 0:01:52.4]} 20. f3 {[%clk 0:02:11.6]} 20... Nf4 {[%clk 0:01:51.3]} 21. b4
{[%clk 0:02:09.1]} 21... cxb4 {[%clk 0:01:47.4]} 22. cxb4 {[%clk 0:02:09.1]}
22... a6 {[%clk 0:01:23.7]} 23. Nc3 {[%clk 0:02:02.2]} 23... d5 {[%clk
0:01:20.4]} 24. Bc5 {[%clk 0:01:56.2]} 24... Rc8 {[%clk 0:01:13.5]} 25. Rc1
{[%clk 0:01:49.8]} 25... d4 {[%clk 0:01:03.3]} 26. Ne2 {[%clk 0:01:46.7]} 26...
Bf8 {[%clk 0:01:01.1]} 27. Nxf4 {[%clk 0:01:43]} 27... exf4 {[%clk 0:00:36.1]}
28. Bxf8 {[%clk 0:01:41.9]} 28... Rfxf8 {[%clk 0:00:37]} 29. Qb3 {[%clk
0:01:39.5]} 29... Kf7 {[%clk 0:00:35.9]} 30. Rc4 {[%clk 0:01:29.4]} 30... Rxc4
{[%clk 0:00:35.2]} 31. dxc4 {[%clk 0:01:26.5]} 31... d3 {[%clk 0:00:33]} 32. Rd1
{[%clk 0:01:23.7]} 32... d2 {[%clk 0:00:32.9]} 33. b5 {[%clk 0:01:20.4]} 33...
Rd8 {[%clk 0:00:28.8]} 34. bxa6 {[%clk 0:01:06.9]} 34... bxa6 {[%clk 0:00:29.7]}
35. c5 {[%clk 0:01:06.6]} 35... Qb5 {[%clk 0:00:20.4]} 36. Qc2 {[%clk
0:00:38.7]} 36... Qxa5 {[%clk 0:00:14.6]} 37. c6 {[%clk 0:00:37.2]} 37... Qc7
{[%clk 0:00:13.2]} 38. e5 {[%clk 0:00:33.2]} 38... Kg7 {[%clk 0:00:11]} 39. Qc5
{[%clk 0:00:29.6]} 39... Rd5 {[%clk 0:00:10.1]} 40. Qc4 {[%clk 0:00:22.1]} 40...
h5 {[%clk 0:00:07.4]} 41. Qxa6 {[%clk 0:00:20.8]} 41... g4 {[%clk 0:00:06.7]}
42. fxg4 {[%clk 0:00:18]} 42... hxg4 {[%clk 0:00:07.6]} 43. hxg4 {[%clk
0:00:17.3]} 43... Qxe5 {[%clk 0:00:08.1]} 44. Qa7+ {[%clk 0:00:14.4]} 44... Kg6
{[%clk 0:00:07.9]} 45. c7 {[%clk 0:00:12.7]} 45... f3+ {[%clk 0:00:08.4]} 46.
Kh3 {[%clk 0:00:10.8]} 46... Qh8+ {[%clk 0:00:06.8]} 47. Kg3 {[%clk 0:00:10.6]}
47... fxg2 {[%clk 0:00:05]} 48. Qa6 {[%clk 0:00:05.3]} 48... g1=Q+ {[%clk
0:00:03.6]} 49. Rxg1 {[%clk 0:00:05]} 49... d1=Q {[%clk 0:00:04]} 50. Rxd1
{[%clk 0:00:04.8]} 50... Rxd1 {[%clk 0:00:04.9]} 51. Qxe6+ {[%clk 0:00:05]}
51... Kg5 {[%clk 0:00:04.4]} 52. Qf5+ {[%clk 0:00:04.2]} 52... Kh6 {[%clk
0:00:05]} 53. Qh5+ {[%clk 0:00:04.4]} 53... Kg7 {[%clk 0:00:05.9]} 54. Qxh8+
{[%clk 0:00:04.6]} 54... Kxh8 {[%clk 0:00:06.8]} 55. c8=Q+ {[%clk 0:00:04.7]}
55... Kg7 {[%clk 0:00:07.7]} 56. Qc7+ {[%clk 0:00:04.7]} 56... Kg6 {[%clk
0:00:07.9]} 57. Qc2+ {[%clk 0:00:04.5]} 57... Kg7 {[%clk 0:00:08.8]} 58. Qxd1
{[%clk 0:00:04.8]} 1-0

[Event "Early-Titled-Tuesday-Blitz-January-23-2024"]
[Site "Chess.com"]
[Date "2024.01.23"]
[Round "1"]
[White "JoliyRoger"]
[Black "monomita"]
[Result "0-1"]
[WhiteElo "2452"]
[BlackElo "2827"]
[TimeControl "180+1"]
[EndTime "8:08:38 PST"]
[Termination "monomita won on time"]

1. d4 {[%clk 0:03:00.9]} 1... Nf6 {[%clk 0:02:58.8]} 2. c4 {[%clk 0:03:00.7]}
2... e6 {[%clk 0:02:59]} 3. Nf3 {[%clk 0:03:00.5]} 3... d5 {[%clk 0:02:57.9]} 4.
Nc3 {[%clk 0:03:00.8]} 4... dxc4 {[%clk 0:02:57.3]} 5. e3 {[%clk 0:03:00.7]}
5... a6 {[%clk 0:02:54.7]} 6. Bxc4 {[%clk 0:02:59.1]} 6... b5 {[%clk 0:02:54.5]}
7. Bd3 {[%clk 0:02:59.7]} 7... Bb7 {[%clk 0:02:54.7]} 8. O-O {[%clk 0:03:00.3]}
8... c5 {[%clk 0:02:49]} 9. dxc5 {[%clk 0:02:59.4]} 9... Bxc5 {[%clk 0:02:48]}
10. Qc2 {[%clk 0:02:59.9]} 10... Nbd7 {[%clk 0:02:41.8]} 11. Ne4 {[%clk
0:02:48.7]} 11... Rc8 {[%clk 0:02:36]} 12. Qb1 {[%clk 0:02:36]} 12... Nxe4
{[%clk 0:02:27]} 13. Bxe4 {[%clk 0:02:35.5]} 13... Bxe4 {[%clk 0:02:27.6]} 14.
Qxe4 {[%clk 0:02:36.1]} 14... O-O {[%clk 0:02:23.4]} 15. Bd2 {[%clk 0:02:32.8]}
15... Nf6 {[%clk 0:02:21.2]} 16. Qh4 {[%clk 0:02:27.2]} 16... Nd5 {[%clk
0:02:17.1]} 17. Qe4 {[%clk 0:02:19.2]} 17... Bd6 {[%clk 0:02:14.9]} 18. Rfd1
{[%clk 0:02:07.8]} 18... Qf6 {[%clk 0:02:12.4]} 19. Qd4 {[%clk 0:02:00.3]} 19...
Qxd4 {[%clk 0:01:58.7]} 20. Nxd4 {[%clk 0:01:58.5]} 20... Be5 {[%clk 0:01:58.7]}
21. Rac1 {[%clk 0:01:49.8]} 21... Bxd4 {[%clk 0:01:58.4]} 22. exd4 {[%clk
0:01:50.1]} 22... f6 {[%clk 0:01:53.1]} 23. Kf1 {[%clk 0:01:50.3]} 23... Kf7
{[%clk 0:01:52.6]} 24. Ke2 {[%clk 0:01:39.1]} 24... Ke7 {[%clk 0:01:51.7]} 25.
Rc5 {[%clk 0:01:32.2]} 25... Kd7 {[%clk 0:01:39.9]} 26. Rdc1 {[%clk 0:01:30.9]}
26... Rxc5 {[%clk 0:01:32.5]} 27. dxc5 {[%clk 0:01:30.5]} 27... b4 {[%clk
0:01:27]} 28. Rc4 {[%clk 0:01:26.4]} 28... Kc6 {[%clk 0:01:21.4]} 29. Rh4 {[%clk
0:01:07.6]} 29... h6 {[%clk 0:00:35.1]} 30. Rg4 {[%clk 0:01:04.9]} 30... g5
{[%clk 0:00:34.7]} 31. Re4 {[%clk 0:00:24.6]} 31... e5 {[%clk 0:00:29]} 32. a3
{[%clk 0:00:19.4]} 32... bxa3 {[%clk 0:00:24]} 33. bxa3 {[%clk 0:00:19.6]} 33...
Kxc5 {[%clk 0:00:22.3]} 34. h4 {[%clk 0:00:16.7]} 34... Rb8 {[%clk 0:00:16.7]}
35. h5 {[%clk 0:00:14.4]} 35... Rb2 {[%clk 0:00:13.3]} 36. Kd1 {[%clk
0:00:14.8]} 36... Rb1+ {[%clk 0:00:06.6]} 37. Kc2 {[%clk 0:00:13.9]} 37... Rf1
{[%clk 0:00:07.2]} 38. Re2 {[%clk 0:00:09.6]} 38... Nf4 {[%clk 0:00:05.6]} 39.
Bxf4 {[%clk 0:00:09]} 39... gxf4 {[%clk 0:00:06.3]} 40. Kd3 {[%clk 0:00:06.8]}
40... Kd5 {[%clk 0:00:06.3]} 41. Rd2 {[%clk 0:00:06.5]} 41... Ra1 {[%clk
0:00:06.1]} 42. Kc2+ {[%clk 0:00:06.9]} 42... Ke6 {[%clk 0:00:06.4]} 43. Kb2
{[%clk 0:00:07.8]} 43... Rg1 {[%clk 0:00:06.5]} 44. f3 {[%clk 0:00:08.2]} 44...
Kf5 {[%clk 0:00:06.7]} 45. Kc3 {[%clk 0:00:08.1]} 45... Ra1 {[%clk 0:00:06.3]}
46. Kb4 {[%clk 0:00:08.4]} 46... Ke6 {[%clk 0:00:03]} 47. Ka4 {[%clk 0:00:06.3]}
47... Rh1 {[%clk 0:00:02.6]} 48. Ka5 {[%clk 0:00:06.2]} 48... Rxh5 {[%clk
0:00:02.7]} 49. Kxa6 {[%clk 0:00:06.7]} 49... Rh1 {[%clk 0:00:03.2]} 50. Ra2
{[%clk 0:00:06.7]} 50... f5 {[%clk 0:00:02.6]} 51. a4 {[%clk 0:00:07.2]} 51...
e4 {[%clk 0:00:03.1]} 52. a5 {[%clk 0:00:04.5]} 52... Rb1 {[%clk 0:00:03]} 0-1

[Event "Early-Titled-Tuesday-Blitz-January-23-2024"]
[Site "Chess.com"]
[Date "2024.01.23"]
[Round "1"]
[White "Boxerandchessplayer"]
[Black "YouJustFoundYourGodfather"]
[Result "1-0"]
[WhiteElo "2237"]
[BlackElo "2574"]
[TimeControl "180+1"]
[EndTime "8:08:39 PST"]
[Termination "Boxerandchessplayer won by checkmate"]

1. d4 {[%clk 0:03:00.9]} 1... g6 {[%clk 0:02:51.3]} 2. c4 {[%clk 0:03:00.4]}
2... Bg7 {[%clk 0:02:52]} 3. Nc3 {[%clk 0:03:00.2]} 3... d6 {[%clk 0:02:52.7]}
4. e4 {[%clk 0:02:59.7]} 4... Nc6 {[%clk 0:02:53.4]} 5. Nge2 {[%clk 0:02:59.5]}
5... e5 {[%clk 0:02:53]} 6. d5 {[%clk 0:02:59.1]} 6... Nce7 {[%clk 0:02:49.2]}
7. Ng3 {[%clk 0:02:58.5]} 7... h5 {[%clk 0:02:48.7]} 8. h4 {[%clk 0:02:57.8]}
8... Bg4 {[%clk 0:02:41.2]} 9. Be2 {[%clk 0:02:53.7]} 9... Bxe2 {[%clk
0:02:40.1]} 10. Qxe2 {[%clk 0:02:44.6]} 10... Bh6 {[%clk 0:02:39.5]} 11. Bg5
{[%clk 0:02:33.5]} 11... f6 {[%clk 0:02:35.2]} 12. Bxh6 {[%clk 0:02:33.2]} 12...
Nxh6 {[%clk 0:02:36.1]} 13. O-O-O {[%clk 0:02:33]} 13... a6 {[%clk 0:02:34.2]}
14. Kb1 {[%clk 0:02:31.7]} 14... Qd7 {[%clk 0:02:32.6]} 15. Rdf1 {[%clk
0:02:28.4]} 15... Qg4 {[%clk 0:02:28.3]} 16. Qe3 {[%clk 0:01:57.6]} 16... b6
{[%clk 0:02:18]} 17. f4 {[%clk 0:01:56.4]} 17... O-O-O {[%clk 0:02:14.2]} 18. b4
{[%clk 0:01:31.1]} 18... Kb7 {[%clk 0:01:57.4]} 19. c5 {[%clk 0:01:24.9]} 19...
Nc8 {[%clk 0:01:56.7]} 20. f5 {[%clk 0:00:54]} 20... Rdg8 {[%clk 0:01:45.5]} 21.
fxg6 {[%clk 0:00:29]} 21... Rxg6 {[%clk 0:01:43.8]} 22. Rf3 {[%clk 0:00:29.1]}
22... Kb8 {[%clk 0:01:27.2]} 23. Nce2 {[%clk 0:00:26.6]} 23... Qd7 {[%clk
0:01:26.3]} 24. Qb3 {[%clk 0:00:26.1]} 24... Ng4 {[%clk 0:01:06.5]} 25. Rc1
{[%clk 0:00:25.5]} 25... Na7 {[%clk 0:00:54.2]} 26. cxb6 {[%clk 0:00:21.7]}
26... cxb6 {[%clk 0:00:54.2]} 27. a4 {[%clk 0:00:22.1]} 27... Rgg8 {[%clk
0:00:50.8]} 28. Rfc3 {[%clk 0:00:21.3]} 28... Rc8 {[%clk 0:00:49.5]} 29. Nf5
{[%clk 0:00:20.1]} 29... Rxc3 {[%clk 0:00:43.1]} 30. Rxc3 {[%clk 0:00:18.8]}
30... Nh6 {[%clk 0:00:42.2]} 31. Neg3 {[%clk 0:00:18.2]} 31... Nf7 {[%clk
0:00:39.9]} 32. Qc2 {[%clk 0:00:17.9]} 32... Kb7 {[%clk 0:00:34.1]} 33. Kb2
{[%clk 0:00:17.7]} 33... Nh6 {[%clk 0:00:23.2]} 34. Kb3 {[%clk 0:00:13.9]} 34...
Nxf5 {[%clk 0:00:22.2]} 35. Nxf5 {[%clk 0:00:14.8]} 35... Rg8 {[%clk 0:00:22.8]}
36. g3 {[%clk 0:00:13.6]} 36... Rc8 {[%clk 0:00:14.3]} 37. Rxc8 {[%clk
0:00:12.4]} 37... Nxc8 {[%clk 0:00:15.2]} 38. Qe2 {[%clk 0:00:12.5]} 38... Qe8
{[%clk 0:00:14.2]} 39. b5 {[%clk 0:00:09.5]} 39... axb5 {[%clk 0:00:13.6]} 40.
axb5 {[%clk 0:00:10.4]} 40... Kb8 {[%clk 0:00:07.6]} 41. Qc4 {[%clk 0:00:09.8]}
41... Qd7 {[%clk 0:00:03.9]} 42. Kb4 {[%clk 0:00:07.7]} 42... Qd8 {[%clk
0:00:01.3]} 43. Qc6 {[%clk 0:00:06.6]} 43... Qf8 {[%clk 0:00:02.2]} 44. Qd7
{[%clk 0:00:05.9]} 44... Qg8 {[%clk 0:00:01.7]} 45. Nxd6 {[%clk 0:00:05.8]}
45... Nxd6 {[%clk 0:00:01.9]} 46. Qxd6+ {[%clk 0:00:06.3]} 46... Kb7 {[%clk
0:00:02.8]} 47. Qxf6 {[%clk 0:00:06.5]} 47... Qxg3 {[%clk 0:00:02.6]} 48. Qe7+
{[%clk 0:00:05.9]} 48... Kb8 {[%clk 0:00:03.3]} 49. Qe8+ {[%clk 0:00:05.8]}
49... Kb7 {[%clk 0:00:03.3]} 50. Qc6+ {[%clk 0:00:05.8]} 50... Ka7 {[%clk
0:00:03.1]} 51. Qc7+ {[%clk 0:00:05.5]} 51... Ka8 {[%clk 0:00:03.8]} 52. Qc6+
{[%clk 0:00:02.6]} 52... Ka7 {[%clk 0:00:03.9]} 53. Qc7+ {[%clk 0:00:02.7]}
53... Ka8 {[%clk 0:00:04.6]} 54. Qxb6 {[%clk 0:00:01.9]} 54... Qe1+ {[%clk
0:00:04.2]} 55. Kc5 {[%clk 0:00:02.1]} 55... Qc3+ {[%clk 0:00:03.8]} 56. Kd6
{[%clk 0:00:02.5]} 56... Qb4+ {[%clk 0:00:02.5]} 57. Qc5 {[%clk 0:00:02.8]}
57... Qxe4 {[%clk 0:00:02.1]} 58. b6 {[%clk 0:00:02.8]} 58... Qxh4 {[%clk
0:00:01.6]} 59. Qc8# {[%clk 0:00:02.8]} 1-0